bitfinex/quotes_SOLUSD_20250422
["timestamp","ask_amount","ask_price","bid_price","bid_amount"]
[1745325721252,0.03,140.54,140.52,44.64964886]
[1745325721563,0.03,140.54,140.52,145.95402758]
[1745325721749,0.063,140.57,140.53,58.5873211]
[1745325721940,0.03,140.59,140.58,18.64964886]
[1745325722140,0.03,140.59,140.58,119.89102758]
[1745325723041,0.03,140.62,140.61,44.64964886]
[1745325723240,0.03,140.62,140.61,145.89102758]
[1745325724337,0.03,140.62,140.61,172.97173341]
[1745325724539,0.03,140.63,140.62,58.5873211]
[1745325724766,0.03,140.66,140.65,44.64964886]
[1745325724969,0.03,140.66,140.65,145.89102758]
[1745325726759,0.03,140.66,140.65,101.24137872]
[1745325726932,0.03,140.66,140.65,81.2725426]
[1745325727136,0.03,140.66,140.64,19.96883612]
[1745325727570,0.03,140.66,140.65,19.96883612]
[1745325731077,0.03,140.66,140.64,19.96883612]
[1745325731869,0.03,140.66,140.65,19.96883612]
[1745325732070,0.03,140.66,140.62,127.24964886]
[1745325732370,0.03,140.66,140.65,19.96883612]
[1745325733262,0.03,140.66,140.62,127.24964886]
[1745325733450,0.03,140.66,140.65,19.96883612]
[1745325733978,0.03,140.66,140.64,19.96883612]
[1745325734261,0.03,140.66,140.62,101.24964886]
[1745325734463,0.03,140.66,140.63,19.96883612]
[1745325736639,19.96883612,140.65,140.57,95.77426633]
[1745325736845,19.96883612,140.65,140.61,19.96883612]
[1745325737464,0.03,140.66,140.63,19.96883612]
[1745325737667,0.03,140.66,140.64,19.96883612]
[1745325738653,0.03,140.66,140.63,19.96883612]
[1745325738852,0.03,140.66,140.59,108.6]
[1745325739069,0.03,140.66,140.61,19.96883612]
[1745325739070,19.96883612,140.65,140.61,19.96883612]
[1745325739370,19.99883612,140.66,140.62,19.96883612]
[1745325739760,19.99883612,140.66,140.61,19.96883612]
[1745325739962,0.03,140.66,140.62,19.96883612]
[1745325740268,0.03,140.66,140.65,19.96883612]
[1745325740466,0.03,140.66,140.65,121.21848498]
[1745325740766,0.03,140.66,140.65,147.21848498]
[1745325740972,0.03,140.66,140.65,102.56883612]
[1745325741956,0.03,140.66,140.65,121.21848498]
[1745325743164,0.03,140.66,140.65,82.6]
[1745325743477,0.03,140.66,140.65,102.56883612]
[1745325743770,0.03,140.66,140.65,121.21848498]
[1745325744873,0.03,140.66,140.65,101.24964886]
[1745325745079,0.03,140.66,140.65,128.32833211]
[1745325746077,0.03,140.66,140.65,160.66053211]
[1745325746664,0.03,140.66,140.65,134.66053211]
[1745325747264,0.03,140.71,140.69,26.0]
[1745325747575,0.03,140.72,140.71,18.64964886]
[1745325747769,0.03,140.72,140.71,121.18848498]
[1745325748694,0.03,140.72,140.71,147.18848498]
[1745325748876,0.03,140.72,140.71,154.29530041]
[1745325749461,0.03,140.72,140.71,128.29530041]
[1745325750276,0.03,140.72,140.71,121.18848498]
[1745325750482,0.03,140.72,140.71,147.18848498]
[1745325751153,0.03,140.72,140.71,154.29530041]
[1745325751379,0.03,140.72,140.71,128.29530041]
[1745325752075,1.6354,140.8,140.75,18.64964886]
[1745325752275,0.03,140.81,140.79,19.96883612]
[1745325752474,0.03,140.81,140.8,19.96883612]
[1745325752680,0.03,140.81,140.8,121.18848498]
[1745325753066,0.03,140.81,140.8,101.21964886]
[1745325753264,0.03,140.81,140.8,82.57]
[1745325753467,0.03,140.81,140.8,154.2907577]
[1745325755266,0.03,140.81,140.8,128.2907577]
[1745325755887,0.03,140.81,140.8,121.18848498]
[1745325756073,0.03,140.81,140.8,147.18848498]
[1745325756390,0.03,140.81,140.8,154.2907577]
[1745325758199,1.6354,140.89,140.83,44.64964886]
[1745325758404,0.03,140.9,140.88,19.96883612]
[1745325758725,0.03,140.9,140.87,19.96883612]
[1745325758874,0.03,140.9,140.88,19.96883612]
[1745325759567,0.03,140.9,140.84,18.64964886]
[1745325759783,0.03,140.9,140.87,19.96883612]
[1745325759993,0.03,140.9,140.84,121.18848498]
[1745325760302,0.03,140.9,140.88,19.96883612]
[1745325760773,0.03,140.9,140.89,19.96883612]
[1745325761176,0.03,140.9,140.87,19.96883612]
[1745325761604,0.03,140.9,140.86,19.96883612]
[1745325761786,19.99883612,140.9,140.84,101.21964886]
[1745325762100,19.96883612,140.89,140.84,102.53883612]
[1745325762290,19.99883612,140.9,140.85,19.96883612]
[1745325762993,19.99883612,140.9,140.86,19.96883612]
[1745325763172,0.03,140.9,140.86,19.96883612]
[1745325763377,0.03,140.9,140.89,19.96883612]
[1745325764473,0.03,140.9,140.89,38.61848498]
[1745325765385,0.03,140.9,140.89,128.2862208]
[1745325765607,0.03,140.9,140.89,121.18848498]
[1745325766195,0.03,140.9,140.89,128.2862208]
[1745325767002,0.03,140.9,140.89,82.57]
[1745325767410,0.03,140.9,140.89,19.96883612]
[1745325767985,0.03,140.9,140.87,44.64964886]
[1745325768184,0.03,140.9,140.89,19.96883612]
[1745325768719,0.03,140.9,140.89,38.61848498]
[1745325769200,0.03,140.9,140.89,19.96883612]
[1745325770210,0.03,140.9,140.88,18.64964886]
[1745325770405,0.03,140.9,140.88,38.61848498]
[1745325770605,0.03,140.9,140.87,82.57]
[1745325770911,19.99883612,140.9,140.85,19.96883612]
[1745325771108,19.96883612,140.88,140.81,82.57]
[1745325771420,1.5661,140.9,140.82,18.64964886]
[1745325771581,1.5661,140.9,140.88,19.96883612]
[1745325771993,0.03,140.9,140.88,19.96883612]
[1745325772184,0.03,140.9,140.87,19.96883612]
[1745325772687,0.03,140.9,140.88,19.96883612]
[1745325773411,0.03,140.9,140.89,38.61848498]
[1745325774803,0.03,140.9,140.89,18.64964886]
[1745325775007,0.03,140.9,140.89,19.96883612]
[1745325775218,0.03,140.96,140.94,18.64964886]
[1745325775396,0.03,140.96,140.95,38.61848498]
[1745325775713,0.03,140.96,140.95,45.71319941]
[1745325776399,0.03,140.96,140.95,38.61848498]
[1745325776798,0.03,140.96,140.95,45.71319941]
[1745325777104,0.03,140.96,140.95,38.61848498]
[1745325777406,0.03,140.96,140.95,64.61848498]
[1745325778393,0.03,140.96,140.95,71.71319941]
[1745325778587,0.03,140.96,140.95,64.61848498]
[1745325779489,0.03,140.96,140.95,71.71319941]
[1745325780525,0.03,140.96,140.94,82.57]
[1745325781210,0.03,140.96,140.93,19.96883612]
[1745325781596,0.03,140.96,140.91,18.64964886]
[1745325781819,0.03,140.96,140.93,19.96883612]
[1745325782427,0.03,140.96,140.92,19.96883612]
[1745325782636,21.50493612,140.94,140.89,19.96883612]
[1745325783210,19.96883612,140.9,140.84,82.57]
[1745325783404,19.96883612,140.89,140.84,108.57]
[1745325783610,19.96883612,140.89,140.84,82.57]
[1745325783831,19.96883612,140.88,140.83,19.96883612]
[1745325784019,7.0967284,140.91,140.85,19.96883612]
[1745325784223,27.06556452,140.91,140.86,19.96883612]
[1745325784428,19.96883612,140.9,140.85,19.96883612]
[1745325784639,19.96883612,140.89,140.83,26.0]
[1745325784942,19.96883612,140.88,140.83,19.96883612]
[1745325785233,19.96883612,140.9,140.85,19.96883612]
[1745325785448,44.80738554,140.91,140.86,19.96883612]
[1745325785735,7.09773582,140.89,140.85,19.96883612]
[1745325786536,27.06617467,140.9,140.86,19.96883612]
[1745325786923,7.09733855,140.9,140.86,19.96883612]
[1745325787231,27.06617467,140.9,140.86,19.96883612]
[1745325787716,27.06707575,140.88,140.83,128.53883612]
[1745325788113,7.09823963,140.88,140.84,19.96883612]
[1745325788314,7.09823963,140.88,140.83,108.57]
[1745325788530,7.09823963,140.88,140.84,19.96883612]
[1745325788769,7.09823963,140.88,140.83,108.57]
[1745325789028,7.09823963,140.88,140.84,19.96883612]
[1745325789611,27.06707575,140.88,140.83,128.53883612]
[1745325789931,27.06707575,140.88,140.83,82.57]
[1745325790132,19.96883612,140.87,140.83,82.57]
[1745325790345,19.96883612,140.86,140.81,19.96883612]
[1745325790525,19.96883612,140.87,140.82,19.96883612]
[1745325791629,7.09823963,140.88,140.83,19.96883612]
[1745325791948,27.06707575,140.88,140.83,19.96883612]
[1745325792328,27.06707575,140.88,140.8,33.10222652]
[1745325792329,7.09823963,140.88,140.84,19.96883612]
[1745325792824,19.96883612,140.9,140.85,19.96883612]
[1745325793025,7.09712832,140.91,140.87,19.96883612]
[1745325793234,27.06596444,140.91,140.86,19.96883612]
[1745325793437,7.09712832,140.91,140.85,19.96883612]
[1745325793638,19.96883612,140.89,140.85,19.96883612]
[1745325793852,19.96883612,140.88,140.84,38.61848498]
[1745325794026,19.96883612,140.88,140.83,102.53883612]
[1745325794232,19.96883612,140.87,140.83,82.57]
[1745325794430,19.96883612,140.86,140.83,82.57]
[1745325794737,19.96883612,140.85,140.79,101.28264886]
[1745325795048,19.96883612,140.85,140.8,19.96883612]
[1745325795436,19.96883612,140.86,140.81,19.96883612]
[1745325795616,19.96883612,140.86,140.79,127.28264886]
[1745325795823,7.0997515,140.85,140.81,19.96883612]
[1745325796721,7.0997515,140.85,140.79,108.633]
[1745325796722,19.96883612,140.83,140.79,108.633]
[1745325796935,19.96883612,140.83,140.79,128.60183612]
[1745325797448,19.96883612,140.83,140.79,108.633]
[1745325798049,27.07010014,140.82,140.79,108.633]
[1745325798360,26.49383612,140.84,140.8,19.96883612]
[1745325798650,1.6563,140.87,140.83,19.96883612]
[1745325799540,21.62513612,140.87,140.83,19.96883612]
[1745325800241,1.6563,140.87,140.83,19.96883612]
[1745325800644,19.96883612,140.88,140.83,19.96883612]
[1745325800951,26.49383612,140.89,140.84,19.96883612]
[1745325801287,1.6563,140.91,140.87,19.96883612]
[1745325801457,1.6563,140.91,140.85,18.64964886]
[1745325801658,21.62513612,140.91,140.86,19.96883612]
[1745325802332,19.96883612,140.89,140.84,102.53883612]
[1745325802548,19.96883612,140.88,140.84,102.53883612]
[1745325802747,1.6563,140.91,140.84,102.53883612]
[1745325802748,19.96883612,140.89,140.84,102.53883612]
[1745325803062,19.96883612,140.89,140.85,19.96883612]
[1745325803238,19.96883612,140.89,140.84,82.57]
[1745325803433,19.96883612,140.89,140.84,102.53883612]
[1745325804056,19.96883612,140.88,140.84,82.57]
[1745325804544,19.96883612,140.87,140.84,82.57]
[1745325806441,19.96883612,140.89,140.84,102.53883612]
[1745325806853,19.96883612,140.89,140.84,82.57]
[1745325807049,21.62513612,140.91,140.84,82.57]
[1745325807356,19.96883612,140.87,140.82,45.96883612]
[1745325807565,19.96883612,140.86,140.82,26.0]
[1745325807770,19.96883612,140.88,140.83,19.96883612]
[1745325808358,19.96883612,140.87,140.83,19.96883612]
[1745325808666,19.96883612,140.86,140.81,102.53883612]
[1745325809338,19.96883612,140.87,140.83,19.96883612]
[1745325810572,26.0,140.9,140.83,19.96883612]
[1745325810745,19.96883612,140.87,140.83,19.96883612]
[1745325811367,38.40951429,140.87,140.83,12.40951429]
[1745325811870,26.0,140.87,140.83,12.40951429]
[1745325814839,1.6563,140.91,140.86,12.40951429]
[1745325815052,1.5266,140.95,140.9,12.40951429]
[1745325815259,13.93611429,140.95,140.9,12.40951429]
[1745325815565,26.0,140.92,140.9,12.40951429]
[1745325815768,26.0,140.92,140.89,12.40951429]
[1745325816180,12.40951429,140.94,140.89,12.40951429]
[1745325816649,38.40951429,140.94,140.89,12.40951429]
[1745325817176,26.0,140.94,140.9,12.40951429]
[1745325817872,38.40951429,140.94,140.87,101.21964886]
[1745325818048,12.40951429,140.93,140.87,101.21964886]
[1745325818248,12.40951429,140.93,140.89,12.40951429]
[1745325818450,12.40951429,140.91,140.87,82.57]
[1745325818792,12.40951429,140.92,140.87,94.97951429]
[1745325818963,12.40951429,140.93,140.88,12.40951429]
[1745325819575,12.40951429,140.9,140.87,82.57]
[1745325820154,12.40951429,140.9,140.85,12.40951429]
[1745325820470,12.40951429,140.89,140.84,12.40951429]
[1745325820647,12.40951429,140.9,140.85,12.40951429]
[1745325821377,19.84705491,140.91,140.86,19.84705491]
[1745325822169,19.84705491,140.9,140.84,82.57]
[1745325822371,19.84705491,140.9,140.85,19.84705491]
[1745325823175,19.84705491,140.89,140.84,102.41705491]
[1745325823667,19.84705491,140.87,140.84,82.57]
[1745325823873,19.84705491,140.86,140.81,101.21964886]
[1745325824172,19.84705491,140.86,140.81,121.06670377]
[1745325824887,19.84705491,140.86,140.82,19.84705491]
[1745325825067,19.84705491,140.89,140.84,19.84705491]
[1745325825574,19.84705491,140.89,140.85,19.84705491]
[1745325825883,26.0,140.88,140.81,82.57]
[1745325826171,19.84705491,140.87,140.82,19.84705491]
[1745325826567,19.84705491,140.86,140.79,18.71264886]
[1745325826870,19.84705491,140.85,140.8,19.84705491]
[1745325827276,19.84705491,140.86,140.81,19.84705491]
[1745325827647,7.815,140.92,140.84,19.84705491]
[1745325827847,26.0,140.91,140.86,19.84705491]
[1745325828051,19.84705491,140.9,140.85,19.84705491]
[1745325828361,19.84705491,140.91,140.86,19.84705491]
[1745325828562,19.84705491,140.9,140.86,19.84705491]
[1745325829457,19.84705491,140.9,140.82,101.21964886]
[1745325829660,19.84705491,140.9,140.85,19.84705491]
[1745325830062,19.84705491,140.9,140.82,101.21964886]
[1745325830256,19.84705491,140.9,140.84,19.84705491]
[1745325830462,33.815,140.92,140.84,19.84705491]
[1745325830757,19.84705491,140.91,140.86,19.84705491]
[1745325831363,19.84705491,140.9,140.85,19.84705491]
[1745325833277,19.84705491,140.89,140.84,19.84705491]
[1745325836771,19.84705491,140.89,140.84,102.41705491]
[1745325838827,19.84705491,140.86,140.82,26.0]
[1745325838965,19.84705491,140.85,140.81,19.84705491]
[1745325839361,19.84705491,140.85,140.81,45.84705491]
[1745325839878,26.94686681,140.85,140.81,26.0]
[1745325841380,26.94689677,140.85,140.81,26.0]
[1745325841683,19.84705491,140.85,140.81,45.84705491]
[1745325841991,19.84705491,140.88,140.83,19.84705491]
[1745325842398,19.84705491,140.89,140.84,19.84705491]
[1745325843293,12.40638853,140.89,140.84,12.40638853]
[1745325843599,7.09723207,140.9,140.85,12.40638853]
[1745325843776,12.40638853,140.89,140.85,12.40638853]
[1745325844396,12.40638853,140.9,140.85,12.40638853]
[1745325845200,12.40638853,140.88,140.83,82.57]
[1745325845377,12.40638853,140.87,140.83,94.97638853]
[1745325845579,12.40638853,140.87,140.83,82.57]
[1745325845881,12.40638853,140.88,140.83,94.97638853]
[1745325846193,12.40638853,140.88,140.84,12.40638853]
[1745325847506,19.50461713,140.89,140.85,12.40638853]
[1745325848395,12.40638853,140.88,140.83,94.97638853]
[1745325848597,19.50495165,140.88,140.83,94.97638853]
[1745325849204,19.50495165,140.88,140.83,82.57]
[1745325849512,12.40638853,140.86,140.83,82.57]
[1745325850411,7.09856312,140.88,140.83,82.57]
[1745325850577,12.40638853,140.84,140.81,26.0]
[1745325850783,12.40638853,140.84,140.79,127.28264886]
[1745325850982,19.50652442,140.85,140.79,127.28264886]
[1745325851315,19.50652442,140.85,140.8,12.40638853]
[1745325851715,12.40638853,140.84,140.8,12.40638853]
[1745325851892,19.50682825,140.84,140.8,12.40638853]
[1745325852095,19.50682825,140.84,140.79,127.28264886]
[1745325852096,19.50682825,140.84,140.79,139.68903739]
[1745325852806,19.50682825,140.84,140.8,12.40638853]
[1745325853202,19.50682825,140.84,140.79,139.68903739]
[1745325853582,12.40638853,140.83,140.79,82.633]
[1745325853885,19.50762013,140.83,140.79,82.633]
[1745325854082,12.40638853,140.82,140.79,82.633]
[1745325854485,12.40638853,140.81,140.79,0.063]
[1745325854684,12.40638853,140.8,140.79,0.063]
[1745325855923,45.50866125,140.8,140.78,0.063]
[1745325856095,12.40638853,140.79,140.78,0.063]
[1745325858015,19.50916571,140.79,140.78,0.063]
[1745325858396,7.10277718,140.79,140.78,0.063]
[1745325858724,38.40638853,140.81,140.78,0.063]
[1745325859528,7.10227272,140.8,140.78,0.063]
[1745325859819,38.40638853,140.81,140.78,0.063]
[1745325860008,12.40638853,140.8,140.78,0.063]
[1745325860812,12.40638853,140.79,140.78,0.063]
[1745325861933,8.1243,140.85,140.78,0.063]
[1745325862103,12.40638853,140.83,140.79,12.40638853]
[1745325862305,26.0,140.82,140.79,12.40638853]
[1745325862897,12.40638853,140.84,140.79,12.40638853]
[1745325863323,27.6057,140.85,140.79,12.40638853]
[1745325863324,12.40638853,140.83,140.79,12.40638853]
[1745325864322,12.40638853,140.83,140.78,95.03938853]
[1745325864521,12.43638853,140.85,140.8,12.40638853]
[1745325864832,12.40638853,140.84,140.79,31.05603739]
[1745325865131,12.40638853,140.83,140.78,95.03938853]
[1745325865729,19.50764096,140.83,140.78,95.03938853]
[1745325866334,7.10125243,140.83,140.79,12.40638853]
[1745325867106,19.50764096,140.83,140.78,95.03938853]
[1745325868214,7.10125243,140.83,140.79,12.40638853]
[1745325868641,19.50764096,140.83,140.79,12.40638853]
[1745325869748,12.40638853,140.82,140.78,82.633]
[1745325869925,12.40638853,140.79,140.78,0.063]
[1745325870811,1.6648,140.82,140.78,0.063]
[1745325871031,12.40638853,140.82,140.78,0.063]
[1745325871534,12.40638853,140.81,140.78,0.063]
[1745325871740,7.10227272,140.8,140.78,0.063]
[1745325873133,19.50866125,140.8,140.78,0.063]
[1745325873343,12.40638853,140.79,140.78,0.063]
[1745325873710,19.50916571,140.79,140.78,0.063]
[1745325874520,21.15846571,140.79,140.78,0.063]
[1745325875322,8.75207718,140.79,140.78,0.063]
[1745325875634,21.15846571,140.79,140.78,0.063]
[1745325875829,21.15846571,140.79,140.77,0.063]
[1745325875830,33.10328171,140.78,140.77,0.063]
[1745325876031,57.91605877,140.78,140.77,0.063]
[1745325876213,75.67426306,140.78,140.75,0.063]
[1745325876409,12.40638853,140.76,140.75,0.063]
[1745325876614,38.40638853,140.76,140.75,0.063]
[1745325877821,45.51067952,140.76,140.75,0.063]
[1745325880153,19.51067952,140.76,140.75,0.063]
[1745325881837,7.10328171,140.78,140.75,0.063]
[1745325882142,12.40638853,140.76,140.75,0.063]
[1745325883031,7.10328171,140.78,140.75,12.46938853]
[1745325883416,7.10300966,140.79,140.75,12.46938853]
[1745325883614,17.75336269,140.82,140.77,12.40638853]
[1745325883615,7.10126402,140.82,140.77,12.40638853]
[1745325883946,12.40638853,140.81,140.76,12.40638853]
[1745325884765,7.10227272,140.8,140.76,12.40638853]
[1745325885046,19.50866125,140.8,140.76,12.40638853]
[1745325885354,19.50866125,140.8,140.75,82.633]
[1745325885355,12.40638853,140.79,140.75,82.633]
[1745325886059,12.40638853,140.78,140.75,82.633]
[1745325886356,12.40638853,140.77,140.75,82.633]
[1745325886756,12.40638853,140.76,140.75,0.063]
[1745325887133,38.40638853,140.77,140.75,0.063]
[1745325887827,12.40638853,140.76,140.75,0.063]
[1745325888032,26.0,140.77,140.75,0.063]
[1745325888252,12.40638853,140.76,140.75,0.063]
[1745325888770,38.40638853,140.77,140.75,0.063]
[1745325888934,19.51067952,140.76,140.75,0.063]
[1745325894439,7.10227272,140.8,140.75,0.063]
[1745325894759,24.85175216,140.84,140.79,12.40638853]
[1745325895064,12.40638853,140.81,140.76,12.40638853]
[1745325895243,24.85175216,140.84,140.77,12.40638853]
[1745325895442,19.50801588,140.82,140.77,12.40638853]
[1745325896073,12.40638853,140.81,140.75,90.8103]
[1745325896367,12.40638853,140.81,140.77,12.40638853]
[1745325896946,12.40638853,140.8,140.76,12.40638853]
[1745325897467,7.10277718,140.79,140.75,89.2417]
[1745325897669,7.10277718,140.79,140.75,101.64808853]
[1745325898772,19.50916571,140.79,140.75,82.633]
[1745325898968,12.40638853,140.78,140.75,82.633]
[1745325899169,7.10277718,140.79,140.75,0.063]
[1745325899170,19.50916571,140.79,140.75,0.063]
[1745325899356,7.10277718,140.79,140.75,12.46938853]
[1745325899556,19.50916571,140.79,140.75,12.46938853]
[1745325899760,19.50916571,140.79,140.75,0.063]
[1745325900071,12.40638853,140.78,140.75,0.063]
[1745325900782,19.50916571,140.79,140.75,0.063]
[1745325901686,8.68100592,140.81,140.75,12.46938853]
[1745325901859,7.10220592,140.81,140.77,12.40638853]
[1745325902381,19.50859445,140.81,140.76,12.40638853]
[1745325903763,12.40638853,140.8,140.75,0.063]
[1745325903967,12.40638853,140.78,140.75,0.063]
[1745325904967,12.40638853,140.8,140.75,12.46938853]
[1745325905169,7.10220592,140.81,140.77,12.40638853]
[1745325905386,7.10075978,140.83,140.77,12.40638853]
[1745325905557,7.10075978,140.83,140.75,7.1677048]
[1745325905558,7.10075978,140.83,140.79,12.40638853]
[1745325905757,12.40638853,140.83,140.79,12.40638853]
[1745325906257,12.40638853,140.83,140.78,12.40638853]
[1745325907057,12.40638853,140.82,140.77,12.40638853]
[1745325907257,12.40638853,140.81,140.76,12.40638853]
[1745325907782,19.50844836,140.81,140.76,12.40638853]
[1745325908487,19.50785253,140.82,140.77,12.40638853]
[1745325908785,7.1002556,140.84,140.8,12.40638853]
[1745325909906,19.53635966,140.85,140.8,12.40638853]
[1745325910682,12.40638853,140.84,140.78,18.64964886]
[1745325910983,12.40638853,140.84,140.79,12.40638853]
[1745325911375,7.10028913,140.84,140.8,12.40638853]
[1745325911572,19.53634855,140.85,140.8,12.40638853]
[1745325912474,12.43638853,140.85,140.8,12.40638853]
[1745325912781,0.03,140.85,140.81,12.40638853]
[1745325912972,7.12989934,140.85,140.81,12.40638853]
[1745325913174,0.03,140.85,140.81,12.40638853]
[1745325913494,19.53620894,140.85,140.8,12.40638853]
[1745325914009,7.12982041,140.85,140.79,6.2527]
[1745325914183,12.40638853,140.83,140.78,94.97638853]
[1745325914580,12.40638853,140.84,140.79,12.40638853]
[1745325914978,12.40638853,140.84,140.8,12.40638853]
[1745325915384,19.53620894,140.85,140.8,12.40638853]
[1745325915893,12.40638853,140.84,140.79,12.40638853]
[1745325916884,7.12982041,140.85,140.8,12.40638853]
[1745325916885,19.53620894,140.85,140.8,12.40638853]
[1745325918981,0.03,140.85,140.81,12.40638853]
[1745325919700,0.03,140.85,140.82,12.40638853]
[1745325921385,0.03,140.85,140.83,12.40638853]
[1745325923990,0.03,140.85,140.84,12.40638853]
[1745325926589,0.03,140.85,140.84,38.15629299]
[1745325926788,0.03,140.85,140.84,159.13268152]
[1745325930014,0.03,140.85,140.84,139.62603739]
[1745325931220,0.03,140.85,140.84,159.13268152]
[1745325932115,0.03,140.87,140.85,18.64964886]
[1745325932287,0.03,140.87,140.86,19.505636]
[1745325932619,0.03,140.9,140.89,44.64964886]
[1745325932822,0.03,140.9,140.89,139.62603739]
[1745325933810,0.03,140.9,140.86,84.1257]
[1745325933984,12.43638853,140.9,140.86,82.57]
[1745325934185,0.03,140.9,140.86,94.97638853]
[1745325935308,0.03,140.9,140.88,12.40638853]
[1745325936214,0.03,140.9,140.87,12.40638853]
[1745325937589,0.03,140.9,140.88,12.40638853]
[1745325939310,0.03,140.9,140.86,82.57]
[1745325939311,0.03,140.9,140.87,12.40638853]
[1745325940515,0.03,140.9,140.89,12.40638853]
[1745325941014,0.03,140.9,140.89,139.62603739]
[1745325943618,0.03,140.9,140.89,146.72377321]
[1745325944713,0.03,140.9,140.89,139.62603739]
[1745325945622,0.03,140.9,140.89,146.72377321]
[1745325946504,0.03,140.9,140.89,120.72377321]
[1745325946704,0.03,140.9,140.89,161.30377321]
[1745325947808,0.03,140.9,140.89,146.72377321]
[1745325948307,0.03,140.9,140.89,139.62603739]
[1745325949022,0.03,140.9,140.89,161.28377321]
[1745325949420,0.03,140.9,140.89,154.18603739]
[1745325950215,0.03,140.9,140.89,161.28377321]
[1745325950422,0.03,140.9,140.89,135.28377321]
[1745325951020,0.03,140.9,140.89,177.85377321]
[1745325951321,0.03,140.9,140.89,154.18603739]
[1745325952018,0.03,140.9,140.89,161.28377321]
[1745325952623,0.03,140.9,140.89,135.28377321]
[1745325953820,0.03,140.9,140.89,128.18603739]
[1745325954010,0.03,140.9,140.89,154.18603739]
[1745325955720,0.03,140.9,140.89,161.28377321]
[1745325956523,0.03,140.9,140.89,154.18603739]
[1745325957405,0.03,140.9,140.89,149.71152176]
[1745325957603,0.03,140.9,140.89,156.80925758]
[1745325957807,0.03,140.9,140.89,149.71152176]
[1745325957999,0.03,140.9,140.89,123.13]
[1745325958432,0.03,140.9,140.89,131.0618729]
[1745325959332,0.03,140.9,140.89,135.52816293]
[1745325961426,0.03,140.9,140.89,154.17781179]
[1745325961627,0.03,140.9,140.89,161.27554761]
[1745325962632,0.03,140.9,140.89,147.67371054]
[1745325962801,0.03,140.9,140.89,135.27554761]
[1745325963313,0.03,140.9,140.89,161.27554761]
[1745325963519,0.03,140.9,140.89,154.17781179]
[1745325963931,0.03,140.9,140.89,82.57]
[1745325964529,0.03,140.9,140.89,113.61781179]
[1745325964714,0.03,140.9,140.89,146.71554761]
[1745325965303,0.03,140.9,140.89,120.71554761]
[1745325965534,0.03,140.9,140.89,139.61781179]
[1745325965837,0.03,140.9,140.89,108.57]
[1745325966010,0.03,140.9,140.89,94.96816293]
[1745325966340,0.03,140.9,140.89,82.57]
[1745325966634,0.03,140.9,140.87,26.0]
[1745325966830,0.03,140.9,140.89,12.39816293]
[1745325967925,0.03,140.9,140.88,12.39816293]
[1745325971027,0.03,140.9,140.87,12.39816293]
[1745325971634,0.03,140.9,140.88,12.39816293]
[1745325972026,0.03,140.9,140.89,12.39816293]
[1745325972615,0.03,140.9,140.86,97.13]
[1745325973131,0.03,140.9,140.87,12.39816293]
[1745325973642,0.03,140.9,140.86,109.52816293]
[1745325974345,12.39816293,140.89,140.86,14.56]
[1745325974536,7.09823963,140.88,140.84,12.39816293]
[1745325975446,7.09823963,140.88,140.85,12.39816293]
[1745325975818,7.09796565,140.89,140.85,12.39816293]
[1745325976217,7.12739087,140.9,140.87,12.39816293]
[1745325976637,7.12739087,140.9,140.86,12.39816293]
[1745325976836,19.5255538,140.9,140.85,12.39816293]
[1745325978125,12.39816293,140.89,140.84,12.39816293]
[1745325978545,19.49640256,140.88,140.83,94.96816293]
[1745325978757,12.39816293,140.86,140.83,82.57]
[1745325978939,1.5729,140.85,140.83,82.57]
[1745325979258,13.97106293,140.85,140.82,14.38]
[1745325979554,1.5729,140.85,140.81,12.46116293]
[1745325979744,1.5729,140.85,140.82,12.39816293]
[1745325980634,7.1002556,140.84,140.81,12.46116293]
[1745325981051,8.67287591,140.85,140.82,12.39816293]
[1745325981437,1.5729,140.85,140.82,12.39816293]
[1745325981625,8.67281597,140.85,140.82,12.39816293]
[1745325984549,8.67281597,140.85,140.81,12.46116293]
[1745325984747,8.67281597,140.85,140.82,12.39816293]
[1745325985052,8.67281597,140.85,140.81,0.063]
[1745325985348,21.0709789,140.85,140.81,0.063]
[1745325985649,12.39816293,140.84,140.81,0.063]